[Event "IMSA Blitz Women 2019"]
[Site "Hengshui"]
[Date "2019.05.17"]
[Round "2.1"]
[White "Khotenashvili, Bela"]
[Black "Stefanova, Antoaneta"]
[Result "0-1"]
[ECO "A06"]
[WhiteElo "2476"]
[BlackElo "2470"]
[Annotator "ChessBase"]
[PlyCount "64"]
[EventDate "2019.05.17"]
[EventType "blitz"]
[EventCountry "CHN"]
[SourceTitle "playchess.com"]
[Source "ChessBase"]
[SourceQuality "1"]
[TimeControl "180+2"]

1. Nf3 {[%emt 0:00:00]} d5 {[%emt 0:00:00]} 2. g3 {[%emt 0:00:00]} g6 {[%emt 0:00:00]} 3. Bg2 {[%emt 0:00:02]} Bg7 {[%emt 0:00:00]} 4. d4 {[%emt 0:00:02]} Nf6 {[%emt 0:00:04]} 5. O-O {[%emt 0:00:04]} O-O {[%emt 0:00:01]} 6. c3 {[%emt 0:00:00]} Nbd7 {[%emt 0:00:11]} 7. a4 {[%emt 0:00:03]} a5 {[%emt 0:00:04]} 8. Nbd2 {[%emt 0:00:06]} b6 {[%emt 0:00:05]} 9. b4 {[%emt 0:00:15]} Bb7 {[%emt 0:00:19]} 10. b5 {[%emt 0:00:07]} c5 {[%emt 0:00:10]} 11. bxc6 {[%emt 0:00:11]} Bxc6 {[%emt 0:00:02]} 12. Ba3 {[%emt 0:00:10]} Re8 {[%emt 0:00:01]} 13. e3 {[%emt 0:00:01]} b5 {[%emt 0:00:21]} 14. axb5 {[%emt 0:00:07]} Bxb5 {[%emt 0:00:01]} 15. Re1 {[%emt 0:00:01]} a4 {[%emt 0:00:09]} 16. Rb1 {[%emt 0:00:14]} Qa5 {[%emt 0:00:03]} 17. Qc2 {[%emt 0:00:09]} Qa6 {[%emt 0:00:04]} 18. Bf1 {[%emt 0:00:08]} Bxf1 {[%emt 0:00:03]} 19. Rxf1 {[%emt 0:00:00]} e5 {[%emt 0:00:14]} 20. c4 {[%emt 0:00:19]} exd4 {[%emt 0:00:38]} 21. exd4 {[%emt 0:00:14]} dxc4 {[%emt 0:00:06]} 22. Qxc4 {[%emt 0:00:01]} Qxc4 {[%emt 0:00:06]} 23. Nxc4 {[%emt 0:00:01]} Reb8 {[%emt 0:00:11]} 24. Nfe5 {[%emt 0:00:10]} Bf8 {[%emt 0:00:23]} 25. Rxb8 {[%emt 0:00:27]} Rxb8 26. Ra1 Bxa3 {[%emt 0:00:09]} 27. Rxa3 {[%emt 0:00:02]} Rb4 {[%emt 0:00:02]} 28. Kf1 {[%emt 0:00:26]} Nxe5 {[%emt 0:00:10]} 29. dxe5 {[%emt 0:00:01]} Ng4 {[%emt 0:00:02]} 30. Rc3 {[%emt 0:00:11]} Nxh2+ {[%emt 0:00:02]} 31. Kg2 {[%emt 0:00:02]} Ng4 {[%emt 0:00:01]} 32. f4 {[%emt 0:00:11]} Rxc4 {[%emt 0:00:01]} 0-1

[Event "IMSA Blitz Women 2019"]
[Site "Hengshui"]
[Date "2019.05.17"]
[Round "2.1"]
[White "Paehtz, Elisabeth"]
[Black "Tan, Zhongyi"]
[Result "0-1"]
[ECO "D02"]
[WhiteElo "2470"]
[BlackElo "2513"]
[Annotator "ChessBase"]
[PlyCount "88"]
[EventDate "2019.05.17"]
[EventType "blitz"]
[EventCountry "CHN"]
[SourceTitle "playchess.com"]
[Source "ChessBase"]
[SourceQuality "1"]
[TimeControl "180+2"]

1. d4 {[%emt 0:00:00]} Nf6 {[%emt 0:00:00]} 2. Nf3 {[%emt 0:00:00]} d5 {[%emt 0:00:00]} 3. Bf4 {[%emt 0:00:01]} e6 {[%emt 0:00:02]} 4. e3 {[%emt 0:00:01]} c5 {[%emt 0:00:01]} 5. Nbd2 {[%emt 0:00:01]} Nc6 {[%emt 0:00:01]} 6. c3 {[%emt 0:00:01]} Bd6 {[%emt 0:00:01]} 7. Bg3 {[%emt 0:00:01]} O-O {[%emt 0:00:02]} 8. Bb5 {[%emt 0:00:01]} Be7 {[%emt 0:00:01]} 9. Bd3 {[%emt 0:00:06]} b6 {[%emt 0:00:03]} 10. Ne5 {[%emt 0:00:07]} Bb7 {[%emt 0:00:02]} 11. f4 {[%emt 0:00:04]} Bd6 {[%emt 0:00:10]} 12. Bh4 {[%emt 0:00:06]} Be7 {[%emt 0:00:06]} 13. O-O {[%emt 0:00:05]} Ne8 {[%emt 0:00:13]} 14. Bxe7 {[%emt 0:00:41]} Nxe7 {[%emt 0:00:06]} 15. Qh5 {[%emt 0:00:03]} f5 {[%emt 0:00:17]} 16. g4 {[%emt 0:00:07]} Nf6 {[%emt 0:00:02]} 17. Qh3 {[%emt 0:00:01]} Ne4 {[%emt 0:00:06]} 18. Bxe4 {[%emt 0:00:05]} dxe4 {[%emt 0:00:03]} 19. g5 {[%emt 0:00:04]} cxd4 {[%emt 0:00:19]} 20. cxd4 {[%emt 0:00:01]} Rc8 {[%emt 0:00:05]} 21. Rfc1 {[%emt 0:00:02]} Nd5 {[%emt 0:00:17]} 22. a3 {[%emt 0:00:16]} Ba6 {[%emt 0:00:11]} 23. g6 {[%emt 0:00:08]} h6 {[%emt 0:00:09]} 24. Nxe4 {[%emt 0:00:06]} Rxc1+ {[%emt 0:00:13]} 25. Rxc1 {[%emt 0:00:01]} Nxf4 {[%emt 0:00:03]} 26. exf4 {[%emt 0:00:11]} Qxd4+ {[%emt 0:00:02]} 27. Nf2 {[%emt 0:00:02]} Qxf4 {[%emt 0:00:03]} 28. Re1 {[%emt 0:00:05]} Rc8 {[%emt 0:00:08]} 29. Qg3 {[%emt 0:00:10]} Qd2 {[%emt 0:00:05]} 30. Nf3 {[%emt 0:00:06]} Qd5 {[%emt 0:00:01]} 31. Rd1 {[%emt 0:00:09]} Qc6 {[%emt 0:00:01]} 32. Ne5 {[%emt 0:00:04]} Qc5 {[%emt 0:00:14]} 33. Nd7 {[%emt 0:00:10]} Qc2 {[%emt 0:00:22]} 34. Qd6 {[%emt 0:00:11]} Re8 {[%emt 0:00:03]} 35. Ne5 {[%emt 0:00:07]} Bb5 {[%emt 0:00:15]} 36. b4 {[%emt 0:00:27]} f4 {[%emt 0:00:02]} 37. Qd4 {[%emt 0:00:09]} Rf8 {[%emt 0:00:04]} 38. Qe4 {[%emt 0:00:04]} Qb3 {[%emt 0:00:04]} 39. Nf7 {[%emt 0:00:05]} f3 {[%emt 0:00:08]} 40. Nd6 {[%emt 0:00:04]} Be2 {[%emt 0:00:02]} 41. Rc1 {[%emt 0:00:04]} Rd8 {[%emt 0:00:03]} 42. Nf7 {[%emt 0:00:03]} Rf8 {[%emt 0:00:02]} 43. Qd4 {[%emt 0:00:03]} Qxa3 {[%emt 0:00:02]} 44. Qe4 {[%emt 0:00:02]} Qxc1+ {[%emt 0:00:01]} 0-1

[Event "IMSA Blitz Women 2019"]
[Site "Hengshui"]
[Date "2019.05.17"]
[Round "2.1"]
[White "Abdumalik, Zhansaya"]
[Black "Muzychuk, Mariya"]
[Result "1-0"]
[ECO "B12"]
[WhiteElo "2464"]
[BlackElo "2563"]
[Annotator "ChessBase"]
[PlyCount "69"]
[EventDate "2019.05.17"]
[EventType "blitz"]
[EventCountry "CHN"]
[SourceTitle "playchess.com"]
[Source "ChessBase"]
[SourceQuality "1"]
[TimeControl "180+2"]

1. e4 {[%emt 0:00:00]} c6 {[%emt 0:00:00]} 2. d4 {[%emt 0:00:01]} d5 {[%emt 0:00:00]} 3. e5 {[%emt 0:00:01]} Bf5 {[%emt 0:00:00]} 4. Bd3 {[%emt 0:00:02]} Bxd3 {[%emt 0:00:03]} 5. Qxd3 {[%emt 0:00:02]} e6 {[%emt 0:00:00]} 6. Ne2 {[%emt 0:00:05]} c5 {[%emt 0:00:01]} 7. c3 {[%emt 0:00:06]} Nc6 {[%emt 0:00:01]} 8. O-O {[%emt 0:00:05]} Nge7 {[%emt 0:00:09]} 9. Nd2 {[%emt 0:00:07]} h5 {[%emt 0:00:03]} 10. Nf3 {[%emt 0:00:06]} Nf5 {[%emt 0:00:03]} 11. dxc5 {[%emt 0:00:13]} Bxc5 {[%emt 0:00:03]} 12. Ned4 {[%emt 0:00:03]} Bxd4 {[%emt 0:00:20]} 13. cxd4 {[%emt 0:00:01]} Rc8 {[%emt 0:00:04]} 14. Bd2 {[%emt 0:00:09]} Qb6 {[%emt 0:00:05]} 15. Bc3 {[%emt 0:00:01]} O-O {[%emt 0:00:06]} 16. Qd2 {[%emt 0:00:04]} Rc7 {[%emt 0:00:14]} 17. Rad1 {[%emt 0:00:04]} Nce7 {[%emt 0:00:41]} 18. Ba5 {[%emt 0:00:02]} Qc6 {[%emt 0:00:08]} 19. Rc1 {[%emt 0:00:04]} Qxc1 {[%emt 0:00:02]} 20. Rxc1 {[%emt 0:00:00]} Rxc1+ {[%emt 0:00:01]} 21. Qxc1 {[%emt 0:00:01]} Nc6 {[%emt 0:00:01]} 22. Bc3 {[%emt 0:00:03]} Rc8 {[%emt 0:00:01]} 23. Qd2 {[%emt 0:00:03]} a5 {[%emt 0:00:01]} 24. h3 {[%emt 0:00:05]} b6 {[%emt 0:00:01]} 25. g4 {[%emt 0:00:02]} hxg4 {[%emt 0:00:01]} 26. hxg4 {[%emt 0:00:01]} Nh6 {[%emt 0:00:03]} 27. Qg5 {[%emt 0:00:04]} b5 {[%emt 0:00:02]} 28. a3 {[%emt 0:00:03]} b4 {[%emt 0:00:01]} 29. axb4 axb4 30. Bd2 {[%emt 0:00:05]} Ra8 {[%emt 0:00:01]} 31. Qh5 {[%emt 0:00:07]} Ra2 {[%emt 0:00:17]} 32. Bxh6 {[%emt 0:00:03]} gxh6 {[%emt 0:00:00]} 33. Qxh6 {[%emt 0:00:02]} Rxb2 {[%emt 0:00:01]} 34. Ng5 {[%emt 0:00:09]} Nd8 {[%emt 0:00:01]} 35. Nh7 {[%emt 0:00:02]} 1-0

[Event "IMSA Blitz Women 2019"]
[Site "Hengshui"]
[Date "2019.05.17"]
[Round "2.2"]
[White "Muzychuk, Mariya"]
[Black "Abdumalik, Zhansaya"]
[Result "0-1"]
[ECO "B40"]
[WhiteElo "2563"]
[BlackElo "2464"]
[Annotator "RC"]
[PlyCount "140"]
[EventDate "2019.05.17"]
[EventType "blitz"]
[EventCountry "CHN"]
[SourceTitle "playchess.com"]
[Source "ChessBase"]
[SourceQuality "1"]
[TimeControl "180+2"]

1. e4 {[%emt 0:00:00]} c5 {[%emt 0:00:00]} 2. Nf3 {[%emt 0:00:00]} e6 {[%emt 0:00:00]} 3. c3 {[%emt 0:00:00]} d5 {[%emt 0:00:07]} 4. exd5 {[%emt 0:00:02]} Qxd5 {[%emt 0:00:01]} 5. d4 {[%emt 0:00:01]} Nf6 {[%emt 0:00:02]} 6. Na3 {[%emt 0:00:01]} cxd4 {[%emt 0:00:10]} 7. Nb5 {[%emt 0:00:03]} Qd8 {[%emt 0:00:08]} 8. Qxd4 {[%emt 0:00:12]} Nd5 {[%emt 0:00:37]} 9. Bc4 {[%emt 0:00:10]} Nc6 {[%emt 0:00:01]} 10. Qe4 {[%emt 0:00:06]} Be7 {[%emt 0:00:05]} 11. Bxd5 {[%emt 0:00:09]} exd5 {[%emt 0:00:01]} 12. Qxd5 {[%emt 0:00:03]} O-O {[%emt 0:00:28]} 13. Qxd8 {[%emt 0:00:02]} Bxd8 {[%emt 0:00:01]} 14. Be3 {[%emt 0:00:09]} Bg4 {[%emt 0:00:05]} 15. Nfd4 {[%emt 0:00:15]} Ne5 {[%emt 0:00:04]} 16. f3 {[%emt 0:00:11]} Bd7 {[%emt 0:00:03]} 17. O-O-O {[%emt 0:00:08]} Nc4 {[%emt 0:00:01]} 18. Bf4 {[%emt 0:00:03]} g5 {[%emt 0:00:11]} 19. Bg3 {[%emt 0:00:18]} Ne3 {[%emt 0:00:02]} 20. Rd2 {[%emt 0:00:07]} Nc4 {[%emt 0:00:01]} 21. Nd6 {[%emt 0:00:05]} Nxd2 {[%emt 0:00:03]} 22. Kxd2 {[%emt 0:00:02]} b6 {[%emt 0:00:06]} 23. Re1 {[%emt 0:00:07]} Bf6 {[%emt 0:00:01]} 24. Be5 {[%emt 0:00:08]} Bxe5 {[%emt 0:00:13]} 25. Rxe5 {[%emt 0:00:01]} h6 {[%emt 0:00:02]} 26. Re7 {[%emt 0:00:03]} Bc8 {[%emt 0:00:11]} 27. Nc6 {[%emt 0:00:09]} Be6 {[%emt 0:00:04]} 28. Kc2 {[%emt 0:00:07]} a5 {[%emt 0:00:03]} 29. a4 {[%emt 0:00:09]} Kg7 {[%emt 0:00:05]} 30. Nd4 {[%emt 0:00:03]} Kf6 {[%emt 0:00:01]} 31. Rb7 {[%emt 0:00:03]} Rab8 {[%emt 0:00:04]} 32. Ra7 {[%emt 0:00:06]} Rbd8 {[%emt 0:00:06]} 33. Ne4+ {[%emt 0:00:02]} Kg6 {[%emt 0:00:01]} 34. Nc6 {[%emt 0:00:03]} Ra8 {[%emt 0:00:10]} 35. Rb7 {[%emt 0:00:06]} Ra6 {[%emt 0:00:14]} 36. Nd6 {[%emt 0:00:10]} Kf6 {[%emt 0:00:06]} 37. Ne4+ {[%emt 0:00:11]} Kg7 {[%emt 0:00:01]} 38. Nd6 {[%emt 0:00:05]} Bd5 {[%emt 0:00:03]} 39. Rc7 {[%emt 0:00:01]} Raa8 {[%emt 0:00:10]} 40. Ne7 {[%emt 0:00:12]} Be6 {[%emt 0:00:02]} 41. Nef5+ {[%emt 0:00:01]} Kg6 {[%emt 0:00:03]} 42. Nd4 {[%emt 0:00:07]} Rfd8 {[%emt 0:00:06]} 43. Rc6 {[%emt 0:00:05]} Rab8 {[%emt 0:00:07]} 44. Nc4 {[%emt 0:00:05]} Rdc8 {[%emt 0:00:04]} 45. Rxc8 {[%emt 0:00:01]} Rxc8 {[%emt 0:00:00]} 46. Nxb6 {[%emt 0:00:01]} Rb8 {[%emt 0:00:03]} 47. Nxe6 {[%emt 0:00:01]} Rxb6 {[%emt 0:00:05]} 48. Nd4 {[%emt 0:00:02]} f5 {[%emt 0:00:01]} 49. b3 {[%emt 0:00:01]} g4 {[%emt 0:00:02]} 50. fxg4 {[%emt 0:00:07]} fxg4 {[%emt 0:00:01]} 51. Kd3 {[%emt 0:00:01]} h5 {[%emt 0:00:01]} 52. g3 {[%emt 0:00:02]} Rf6 {[%emt 0:00:02]} 53. b4 {[%emt 0:00:00]} axb4 {[%emt 0:00:01]} 54. cxb4 {[%emt 0:00:01]} Rf2 {[%emt 0:00:01]} 55. a5 {[%emt 0:00:01]} Rxh2 {[%emt 0:00:01]} 56. a6 {[%emt 0:00:00]} Ra2 {[%emt 0:00:01]} 57. b5 {[%emt 0:00:01]} Kg5 {[%emt 0:00:02]} 58. Ke3 {[%emt 0:00:04]} h4 {[%emt 0:00:03]} 59. gxh4+ {[%emt 0:00:01]} Kxh4 {[%emt 0:00:01]} 60. Nf5+ {[%emt 0:00:07]} Kh3 {[%emt 0:00:01]} 61. Kf4 {[%emt 0:00:01]} Ra4+ {[%emt 0:00:01]} 62. Ke5 {[%emt 0:00:03]} Ra5 {[%emt 0:00:01]} 63. Nd4 {[%emt 0:00:13]} g3 {[%emt 0:00:02]} 64. Kf4 {[%emt 0:00:02]} g2 {[%emt 0:00:01]} 65. Ne2 {[%emt 0:00:02]} Rxb5 {[%emt 0:00:01]} 66. Kf3 {[%emt 0:00:01]} Rb3+ {[%emt 0:00:03]} 67. Kf2 {[%emt 0:00:00]} Kh2 {[%emt 0:00:03]} 68. a7 {[%emt 0:00:01]} Ra3 {[%emt 0:00:01]} 69. Ng1 {[%emt 0:00:01]} Rxa7 70. Nf3+ {[%emt 0:00:01]} Kh1 {[%emt 0:00:04]} 0-1

[Event "IMSA Blitz Women 2019"]
[Site "Hengshui"]
[Date "2019.05.17"]
[Round "2.2"]
[White "Kosteniuk, Alexandra"]
[Black "Dzagnidze, Nana"]
[Result "1-0"]
[ECO "C01"]
[WhiteElo "2546"]
[BlackElo "2510"]
[Annotator "ChessBase"]
[PlyCount "117"]
[EventDate "2019.05.17"]
[EventType "blitz"]
[EventCountry "CHN"]
[SourceTitle "playchess.com"]
[Source "ChessBase"]
[SourceQuality "1"]
[TimeControl "180+2"]

1. e4 {[%emt 0:00:00]} e6 {[%emt 0:00:00]} 2. d4 {[%emt 0:00:00]} d5 {[%emt 0:00:00]} 3. exd5 {[%emt 0:00:01]} exd5 {[%emt 0:00:02]} 4. Nf3 {[%emt 0:00:01]} Bd6 {[%emt 0:00:04]} 5. c4 {[%emt 0:00:01]} dxc4 {[%emt 0:00:12]} 6. Bxc4 {[%emt 0:00:02]} Nf6 {[%emt 0:00:21]} 7. O-O {[%emt 0:00:02]} O-O {[%emt 0:00:02]} 8. Nc3 {[%emt 0:00:01]} Nbd7 {[%emt 0:00:19]} 9. Bg5 {[%emt 0:00:03]} Nb6 {[%emt 0:00:06]} 10. Bd3 {[%emt 0:00:06]} Bg4 {[%emt 0:00:08]} 11. Re1 {[%emt 0:00:18]} c6 {[%emt 0:00:10]} 12. Bc2 {[%emt 0:00:21]} h6 {[%emt 0:00:19]} 13. Bh4 {[%emt 0:00:06]} g5 {[%emt 0:00:03]} 14. Bg3 {[%emt 0:00:01]} Bxg3 {[%emt 0:00:02]} 15. hxg3 {[%emt 0:00:01]} Qd6 {[%emt 0:00:13]} 16. Qd3 {[%emt 0:00:04]} Bxf3 {[%emt 0:00:08]} 17. Qxf3 {[%emt 0:00:03]} Rfe8 {[%emt 0:00:12]} 18. Ne4 {[%emt 0:00:10]} Nxe4 {[%emt 0:00:06]} 19. Rxe4 {[%emt 0:00:01]} Nd7 {[%emt 0:00:16]} 20. Rae1 {[%emt 0:00:15]} Rxe4 {[%emt 0:00:03]} 21. Qxe4 {[%emt 0:00:12]} Nf6 {[%emt 0:00:01]} 22. Qf5 {[%emt 0:00:17]} Kg7 {[%emt 0:00:07]} 23. Bb3 {[%emt 0:00:24]} Rd8 {[%emt 0:00:09]} 24. Kh2 {[%emt 0:00:37]} Qxd4 {[%emt 0:00:20]} 25. f3 {[%emt 0:00:09]} Qd6 {[%emt 0:00:14]} 26. Re5 {[%emt 0:00:04]} Rd7 {[%emt 0:00:05]} 27. f4 {[%emt 0:00:02]} gxf4 {[%emt 0:00:04]} 28. gxf4 {[%emt 0:00:00]} Qd4 {[%emt 0:00:03]} 29. Re2 {[%emt 0:00:12]} Qd3 {[%emt 0:00:03]} 30. Qxd3 {[%emt 0:00:12]} Rxd3 {[%emt 0:00:01]} 31. g3 {[%emt 0:00:03]} Kf8 {[%emt 0:00:05]} 32. Kg2 {[%emt 0:00:02]} h5 {[%emt 0:00:02]} 33. Bc4 {[%emt 0:00:02]} Rd4 {[%emt 0:00:01]} 34. Bb3 {[%emt 0:00:02]} c5 {[%emt 0:00:02]} 35. Bc2 {[%emt 0:00:03]} b6 {[%emt 0:00:02]} 36. Bf5 {[%emt 0:00:02]} Rb4 {[%emt 0:00:02]} 37. b3 {[%emt 0:00:01]} Rd4 {[%emt 0:00:01]} 38. Kf3 {[%emt 0:00:05]} Rd5 {[%emt 0:00:01]} 39. Bc2 {[%emt 0:00:02]} Ng4 {[%emt 0:00:03]} 40. Be4 {[%emt 0:00:04]} Rd1 {[%emt 0:00:02]} 41. Bf5 {[%emt 0:00:02]} Nf6 {[%emt 0:00:02]} 42. Bc2 {[%emt 0:00:01]} Ra1 {[%emt 0:00:02]} 43. Bf5 {[%emt 0:00:01]} Rf1+ {[%emt 0:00:01]} 44. Kg2 {[%emt 0:00:01]} Rd1 {[%emt 0:00:02]} 45. Bc2 {[%emt 0:00:01]} Rd4 {[%emt 0:00:01]} 46. Bf5 {[%emt 0:00:02]} a6 47. Kf3 {[%emt 0:00:01]} Rd5 {[%emt 0:00:06]} 48. Bb1 {[%emt 0:00:04]} Rd6 {[%emt 0:00:02]} 49. Bf5 {[%emt 0:00:02]} Rd8 {[%emt 0:00:02]} 50. a4 {[%emt 0:00:02]} Re8 {[%emt 0:00:01]} 51. Re5 {[%emt 0:00:02]} Rxe5 {[%emt 0:00:03]} 52. fxe5 {[%emt 0:00:01]} Nd5 {[%emt 0:00:01]} 53. Ke4 {[%emt 0:00:06]} Ne7 {[%emt 0:00:02]} 54. Bd7 {[%emt 0:00:02]} Kg7 {[%emt 0:00:01]} 55. Be8 {[%emt 0:00:04]} f6 {[%emt 0:00:03]} 56. e6 {[%emt 0:00:02]} Kh6 {[%emt 0:00:01]} 57. Kf4 {[%emt 0:00:01]} Ng6+ 58. Kf5 {[%emt 0:00:01]} Nf8 59. Kxf6 1-0

[Event "IMSA Blitz Women 2019"]
[Site "Hengshui"]
[Date "2019.05.17"]
[Round "2.2"]
[White "Tan, Zhongyi"]
[Black "Paehtz, Elisabeth"]
[Result "1-0"]
[ECO "A10"]
[WhiteElo "2513"]
[BlackElo "2470"]
[Annotator "ChessBase"]
[PlyCount "69"]
[EventDate "2019.05.17"]
[EventType "blitz"]
[EventCountry "CHN"]
[SourceTitle "playchess.com"]
[Source "ChessBase"]
[SourceQuality "1"]
[TimeControl "180+2"]

1. c4 {[%emt 0:00:00]} g6 {[%emt 0:00:00]} 2. Nf3 {[%emt 0:00:07]} Bg7 {[%emt 0:00:00]} 3. d4 {[%emt 0:00:01]} d6 {[%emt 0:00:00]} 4. g3 {[%emt 0:00:02]} e5 {[%emt 0:00:01]} 5. dxe5 {[%emt 0:00:07]} dxe5 {[%emt 0:00:01]} 6. Qxd8+ {[%emt 0:00:02]} Kxd8 {[%emt 0:00:01]} 7. Nc3 {[%emt 0:00:01]} f6 {[%emt 0:00:10]} 8. h4 {[%emt 0:00:06]} Bg4 {[%emt 0:00:07]} 9. Bg2 {[%emt 0:00:03]} c6 {[%emt 0:00:02]} 10. b3 {[%emt 0:00:14]} Nd7 {[%emt 0:00:06]} 11. Ba3 {[%emt 0:00:02]} Nh6 {[%emt 0:00:04]} 12. O-O-O {[%emt 0:00:05]} Nf7 {[%emt 0:00:04]} 13. h5 {[%emt 0:00:09]} Kc7 {[%emt 0:00:18]} 14. hxg6 {[%emt 0:00:58]} hxg6 {[%emt 0:00:01]} 15. Nh4 {[%emt 0:00:02]} g5 {[%emt 0:00:06]} 16. Ng6 {[%emt 0:00:11]} Rxh1 {[%emt 0:00:27]} 17. Rxh1 {[%emt 0:00:01]} Nf8 {[%emt 0:00:07]} 18. Bxf8 {[%emt 0:00:13]} Bxf8 {[%emt 0:00:01]} 19. Rh7 {[%emt 0:00:05]} Ba3+ {[%emt 0:00:01]} 20. Kc2 {[%emt 0:00:06]} Bf5+ {[%emt 0:00:10]} 21. Be4 {[%emt 0:00:03]} Be6 {[%emt 0:00:00]} 22. g4 {[%emt 0:00:20]} Rd8 {[%emt 0:00:05]} 23. Bf5 {[%emt 0:00:04]} Bxf5+ {[%emt 0:00:02]} 24. gxf5 {[%emt 0:00:01]} Rd7 {[%emt 0:00:02]} 25. Ne4 {[%emt 0:00:03]} Nd6 {[%emt 0:00:24]} 26. Rxd7+ {[%emt 0:00:07]} Kxd7 {[%emt 0:00:01]} 27. Nxf6+ {[%emt 0:00:02]} Kd8 {[%emt 0:00:01]} 28. e4 {[%emt 0:00:02]} g4 {[%emt 0:00:02]} 29. Nxe5 {[%emt 0:00:05]} Ke7 {[%emt 0:00:05]} 30. Nexg4 {[%emt 0:00:07]} Bc5 {[%emt 0:00:06]} 31. f3 {[%emt 0:00:02]} a5 {[%emt 0:00:02]} 32. Kd3 {[%emt 0:00:01]} b5 {[%emt 0:00:01]} 33. Nh5 {[%emt 0:00:04]} bxc4+ {[%emt 0:00:06]} 34. bxc4 {[%emt 0:00:01]} Bb4 {[%emt 0:00:01]} 35. Ne5 {[%emt 0:00:02]} 1-0

[Event "IMSA Blitz Women 2019"]
[Site "Hengshui"]
[Date "2019.05.17"]
[Round "2.2"]
[White "Bodnaruk, Anastasia"]
[Black "Lei, Tingjie"]
[Result "0-1"]
[ECO "C50"]
[WhiteElo "2431"]
[BlackElo "2507"]
[Annotator "RC"]
[PlyCount "146"]
[EventDate "2019.05.17"]
[EventType "blitz"]
[EventCountry "CHN"]
[SourceTitle "playchess.com"]
[Source "ChessBase"]
[SourceQuality "1"]
[TimeControl "180+2"]

1. e4 {[%emt 0:00:00]} e5 {[%emt 0:00:00]} 2. Nf3 {[%emt 0:00:00]} Nc6 {[%emt 0:00:00]} 3. Bc4 {[%emt 0:00:01]} Bc5 {[%emt 0:00:03]} 4. d3 {[%emt 0:00:03]} Nf6 {[%emt 0:00:02]} 5. Bg5 {[%emt 0:00:01]} h6 {[%emt 0:00:04]} 6. Bh4 {[%emt 0:00:01]} Be7 {[%emt 0:00:03]} 7. O-O {[%emt 0:00:20]} d6 {[%emt 0:00:01]} 8. c3 {[%emt 0:00:02]} O-O {[%emt 0:00:03]} 9. Bb3 {[%emt 0:00:07]} a6 {[%emt 0:00:06]} 10. Re1 {[%emt 0:00:02]} Nh5 {[%emt 0:00:30]} 11. Bg3 {[%emt 0:00:23]} Nxg3 {[%emt 0:00:03]} 12. hxg3 {[%emt 0:00:06]} g6 {[%emt 0:00:05]} 13. Nbd2 {[%emt 0:00:04]} Bf6 {[%emt 0:00:01]} 14. Nf1 {[%emt 0:00:02]} Bg7 {[%emt 0:00:08]} 15. d4 {[%emt 0:00:09]} Kh8 {[%emt 0:00:04]} 16. Ne3 {[%emt 0:00:13]} Bd7 {[%emt 0:00:07]} 17. Qd2 {[%emt 0:00:05]} Kh7 {[%emt 0:00:16]} 18. Rad1 {[%emt 0:00:07]} exd4 {[%emt 0:00:04]} 19. Nxd4 {[%emt 0:00:19]} Nxd4 {[%emt 0:00:13]} 20. cxd4 {[%emt 0:00:00]} Rc8 {[%emt 0:00:01]} 21. f4 {[%emt 0:00:04]} Qe8 {[%emt 0:00:11]} 22. e5 {[%emt 0:00:03]} dxe5 {[%emt 0:00:13]} 23. dxe5 {[%emt 0:00:07]} Ba4 {[%emt 0:00:08]} 24. Qc2 {[%emt 0:00:10]} Bxb3 {[%emt 0:00:07]} 25. Qxb3 {[%emt 0:00:01]} b6 {[%emt 0:00:15]} 26. Nd5 {[%emt 0:00:04]} Kh8 {[%emt 0:00:09]} 27. Rc1 {[%emt 0:00:43]} Qd7 {[%emt 0:00:14]} 28. Red1 {[%emt 0:00:12]} Qg4 {[%emt 0:00:03]} 29. Nxc7 {[%emt 0:00:19]} Rcd8 {[%emt 0:00:10]} 30. Qf3 {[%emt 0:00:01]} Qc8 {[%emt 0:00:03]} 31. Nd5 {[%emt 0:00:03]} Qe6 {[%emt 0:00:02]} 32. Rd3 {[%emt 0:00:06]} Rc8 {[%emt 0:00:07]} 33. Rcd1 {[%emt 0:00:01]} h5 {[%emt 0:00:04]} 34. Nc3 {[%emt 0:00:01]} Qc4 {[%emt 0:00:03]} 35. Rd7 {[%emt 0:00:03]} b5 {[%emt 0:00:01]} 36. Ne2 {[%emt 0:00:05]} Qxa2 {[%emt 0:00:02]} 37. f5 {[%emt 0:00:02]} Qxb2 {[%emt 0:00:07]} 38. f6 {[%emt 0:00:02]} Bh6 {[%emt 0:00:01]} 39. Nf4 {[%emt 0:00:01]} Qxe5 {[%emt 0:00:02]} 40. Rxf7 {[%emt 0:00:02]} Bxf4 {[%emt 0:00:03]} 41. Rxf8+ {[%emt 0:00:01]} Rxf8 {[%emt 0:00:01]} 42. gxf4 {[%emt 0:00:01]} Qxf6 {[%emt 0:00:01]} 43. Rd7 {[%emt 0:00:03]} Qxf4 {[%emt 0:00:04]} 44. Qc3+ {[%emt 0:00:03]} Qf6 {[%emt 0:00:01]} 45. Qc1 {[%emt 0:00:03]} Qb6+ {[%emt 0:00:03]} 46. Kh1 {[%emt 0:00:01]} g5 {[%emt 0:00:18]} 47. Qc3+ {[%emt 0:00:03]} Qf6 {[%emt 0:00:01]} 48. Qc2 {[%emt 0:00:02]} Rf7 {[%emt 0:00:01]} 49. Rd1 {[%emt 0:00:02]} Kg7 {[%emt 0:00:02]} 50. Rc1 {[%emt 0:00:01]} h4 {[%emt 0:00:01]} 51. Qd3 {[%emt 0:00:01]} Qg6 {[%emt 0:00:03]} 52. Qd4+ {[%emt 0:00:01]} Qf6 {[%emt 0:00:01]} 53. Qd5 {[%emt 0:00:01]} Re7 {[%emt 0:00:02]} 54. Rd1 {[%emt 0:00:01]} Qe5 {[%emt 0:00:02]} 55. Qd3 {[%emt 0:00:02]} Qf6 {[%emt 0:00:01]} 56. Qd5 {[%emt 0:00:01]} b4 {[%emt 0:00:03]} 57. Qd3 {[%emt 0:00:01]} a5 {[%emt 0:00:01]} 58. Rf1 {[%emt 0:00:01]} Qe5 {[%emt 0:00:04]} 59. Qc4 {[%emt 0:00:08]} h3 {[%emt 0:00:05]} 60. gxh3 {[%emt 0:00:05]} Qe4+ {[%emt 0:00:00]} 61. Qxe4 {[%emt 0:00:01]} Rxe4 {[%emt 0:00:01]} 62. Rf5 {[%emt 0:00:00]} a4 63. Rxg5+ Kf6 {[%emt 0:00:01]} 64. Ra5 {[%emt 0:00:02]} a3 {[%emt 0:00:01]} 65. Kg2 {[%emt 0:00:02]} Re2+ {[%emt 0:00:01]} 66. Kg3 {[%emt 0:00:00]} a2 {[%emt 0:00:03]} 67. h4 {[%emt 0:00:03]} b3 {[%emt 0:00:00]} 68. h5 {[%emt 0:00:01]} Re5 {[%emt 0:00:02]} 69. Ra6+ {[%emt 0:00:01]} Kg5 {[%emt 0:00:01]} 70. h6 {[%emt 0:00:01]} b2 {[%emt 0:00:01]} 71. h7 {[%emt 0:00:03]} b1=Q {[%emt 0:00:07]} 72. h8=Q {[%emt 0:00:04]} Qg1+ {[%emt 0:00:02]} 73. Kh3 {[%emt 0:00:01]} Re3# {[%emt 0:00:02]} 0-1